[Event "Late-Titled-Tuesday-Blitz-May-07-2024"]
[Site "Chess.com"]
[Date "2024.05.07"]
[Round "10"]
[White "chenxiaoyuer"]
[Black "ChristopherYoo"]
[Result "0-1"]
[WhiteElo "2802"]
[BlackElo "2996"]
[TimeControl "180+1"]
[EndTime "15:57:22 PDT"]
[Termination "ChristopherYoo won by checkmate"]

1. e4 {[%clk 0:03:00.9]} 1... e5 {[%clk 0:02:46.9]} 2. Nf3 {[%clk 0:03:00.7]}
2... Nc6 {[%clk 0:02:46.7]} 3. Bb5 {[%clk 0:03:01.1]} 3... Nge7 {[%clk
0:02:45.2]} 4. Nc3 {[%clk 0:02:58.2]} 4... a6 {[%clk 0:02:43.2]} 5. Ba4 {[%clk
0:02:52.6]} 5... Ng6 {[%clk 0:02:43]} 6. h4 {[%clk 0:02:44.6]} 6... h5 {[%clk
0:02:42.4]} 7. d3 {[%clk 0:02:32.2]} 7... Bc5 {[%clk 0:02:41.3]} 8. Bg5 {[%clk
0:02:27.3]} 8... f6 {[%clk 0:02:41]} 9. Be3 {[%clk 0:02:26.9]} 9... Bxe3 {[%clk
0:02:40.5]} 10. fxe3 {[%clk 0:02:27.1]} 10... b5 {[%clk 0:02:40.8]} 11. Bb3
{[%clk 0:02:27]} 11... d6 {[%clk 0:02:41.4]} 12. a4 {[%clk 0:02:23.2]} 12... b4
{[%clk 0:02:36.5]} 13. Nd5 {[%clk 0:02:23.3]} 13... Na5 {[%clk 0:02:14.6]} 14.
Ba2 {[%clk 0:02:19.3]} 14... Rb8 {[%clk 0:01:32.6]} 15. Qd2 {[%clk 0:02:16.5]}
15... c5 {[%clk 0:01:29]} 16. Qf2 {[%clk 0:02:05.2]} 16... b3 {[%clk 0:01:24.5]}
17. cxb3 {[%clk 0:02:01.6]} 17... Nxb3 {[%clk 0:01:24.6]} 18. Qg3 {[%clk
0:01:53.7]} 18... Rh6 {[%clk 0:01:06.4]} 19. Rd1 {[%clk 0:01:28.5]} 19... Qa5+
{[%clk 0:01:04.7]} 20. Kf2 {[%clk 0:01:24.1]} 20... Qxa4 {[%clk 0:01:02.7]} 21.
Nc3 {[%clk 0:01:18.1]} 21... Qa5 {[%clk 0:00:59.3]} 22. Bb1 {[%clk 0:01:11.9]}
22... Bg4 {[%clk 0:00:56.1]} 23. Bc2 {[%clk 0:01:10.3]} 23... Kf8 {[%clk
0:00:42.9]} 24. Rde1 {[%clk 0:00:51.5]} 24... Ne7 {[%clk 0:00:34.3]} 25. Rhf1
{[%clk 0:00:42.5]} 25... Kg8 {[%clk 0:00:24.5]} 26. Nh2 {[%clk 0:00:34.4]} 26...
Be6 {[%clk 0:00:23.4]} 27. Kg1 {[%clk 0:00:33.9]} 27... Nd2 {[%clk 0:00:22]} 28.
Rf2 {[%clk 0:00:30.6]} 28... Rxb2 {[%clk 0:00:22.1]} 29. Rxd2 {[%clk 0:00:18.2]}
29... Qxc3 {[%clk 0:00:21.6]} 30. Ree2 {[%clk 0:00:18.3]} 30... Nc6 {[%clk
0:00:18.5]} 31. Nf3 {[%clk 0:00:16.8]} 31... Nb4 {[%clk 0:00:18]} 32. Ba4 {[%clk
0:00:16.7]} 32... Rxd2 {[%clk 0:00:13.9]} 33. Rxd2 {[%clk 0:00:16.7]} 33... Qa1+
{[%clk 0:00:14.2]} 34. Kh2 {[%clk 0:00:15.6]} 34... Qxa4 {[%clk 0:00:13.8]} 35.
d4 {[%clk 0:00:16.5]} 35... cxd4 {[%clk 0:00:12.8]} 36. exd4 {[%clk 0:00:17.4]}
36... Qe8 {[%clk 0:00:10]} 37. dxe5 {[%clk 0:00:16.3]} 37... dxe5 {[%clk
0:00:10.9]} 38. Rd6 {[%clk 0:00:16.8]} 38... Nc6 {[%clk 0:00:09.6]} 39. Qe1
{[%clk 0:00:16.4]} 39... Nd4 {[%clk 0:00:08.9]} 40. Qc3 {[%clk 0:00:15.6]} 40...
Nxf3+ {[%clk 0:00:08.6]} 41. gxf3 {[%clk 0:00:16.2]} 41... Kh7 {[%clk
0:00:08.9]} 42. Qc7 {[%clk 0:00:16]} 42... Qf7 {[%clk 0:00:08.8]} 43. Qd8 {[%clk
0:00:15.7]} 43... f5 {[%clk 0:00:06.3]} 44. Rc6 {[%clk 0:00:13.3]} 44... fxe4
{[%clk 0:00:06.5]} 45. Rc7 {[%clk 0:00:12.7]} 45... Qf4+ {[%clk 0:00:06.5]} 46.
Kg2 {[%clk 0:00:11.9]} 46... Qxf3+ {[%clk 0:00:06.7]} 47. Kh2 {[%clk 0:00:11.5]}
47... Qf2+ {[%clk 0:00:06.6]} 48. Kh1 {[%clk 0:00:11.8]} 48... Qe1+ {[%clk
0:00:05.5]} 49. Kh2 {[%clk 0:00:09.6]} 49... Qe2+ {[%clk 0:00:05.9]} 50. Kh1
{[%clk 0:00:09.6]} 50... Qg4 {[%clk 0:00:03.5]} 51. Qf8 {[%clk 0:00:07.1]} 51...
Rg6 {[%clk 0:00:02.8]} 52. Rxg7+ {[%clk 0:00:02.6]} 52... Rxg7 {[%clk
0:00:03.2]} 53. Qxg7+ {[%clk 0:00:01.6]} 53... Qxg7 {[%clk 0:00:04.1]} 54. Kh2
{[%clk 0:00:02.2]} 54... e3 {[%clk 0:00:04.5]} 55. Kh1 {[%clk 0:00:03.1]} 55...
Bd5+ {[%clk 0:00:05]} 56. Kh2 {[%clk 0:00:04]} 56... Qg2# {[%clk 0:00:05.4]} 0-1

[Event "Late-Titled-Tuesday-Blitz-May-07-2024"]
[Site "Chess.com"]
[Date "2024.05.07"]
[Round "10"]
[White "Fins0905"]
[Black "sergiochess83"]
[Result "0-1"]
[WhiteElo "2735"]
[BlackElo "2893"]
[TimeControl "180+1"]
[EndTime "15:57:33 PDT"]
[Termination "sergiochess83 won on time"]

1. Nf3 {[%clk 0:02:25.6]} 1... d5 {[%clk 0:02:48.7]} 2. d4 {[%clk 0:02:23.7]}
2... Nf6 {[%clk 0:02:48.2]} 3. c4 {[%clk 0:02:23.9]} 3... c6 {[%clk 0:02:48.9]}
4. cxd5 {[%clk 0:02:23.6]} 4... cxd5 {[%clk 0:02:48.7]} 5. Nc3 {[%clk
0:02:24.2]} 5... Nc6 {[%clk 0:02:49]} 6. Bf4 {[%clk 0:02:24.5]} 6... Bf5 {[%clk
0:02:48]} 7. e3 {[%clk 0:02:23.8]} 7... e6 {[%clk 0:02:48.3]} 8. Qb3 {[%clk
0:02:24]} 8... Bb4 {[%clk 0:02:46.1]} 9. Bb5 {[%clk 0:02:23.7]} 9... O-O {[%clk
0:02:42.8]} 10. O-O {[%clk 0:02:23.3]} 10... Qa5 {[%clk 0:02:24.6]} 11. Rfc1
{[%clk 0:01:55]} 11... Rfc8 {[%clk 0:02:21.6]} 12. a3 {[%clk 0:01:50.2]} 12...
Bf8 {[%clk 0:02:15]} 13. Bf1 {[%clk 0:01:42.9]} 13... Nd8 {[%clk 0:01:40.8]} 14.
h3 {[%clk 0:01:33.2]} 14... h6 {[%clk 0:01:40.2]} 15. Qd1 {[%clk 0:01:13.8]}
15... Ne4 {[%clk 0:01:36.9]} 16. Nxe4 {[%clk 0:01:03.7]} 16... Bxe4 {[%clk
0:01:36.7]} 17. Nd2 {[%clk 0:00:55.6]} 17... Bg6 {[%clk 0:01:33.8]} 18. b4
{[%clk 0:00:54.6]} 18... Qb6 {[%clk 0:01:19.6]} 19. Nb3 {[%clk 0:00:53.1]} 19...
Nc6 {[%clk 0:01:10]} 20. Nc5 {[%clk 0:00:50.8]} 20... Bxc5 {[%clk 0:00:28.8]}
21. bxc5 {[%clk 0:00:44.2]} 21... Qa5 {[%clk 0:00:29]} 22. Qb3 {[%clk
0:00:42.3]} 22... b6 {[%clk 0:00:27.1]} 23. Bb5 {[%clk 0:00:28.8]} 23... a6
{[%clk 0:00:20.8]} 24. Be2 {[%clk 0:00:18]} 24... b5 {[%clk 0:00:20.7]} 25. a4
{[%clk 0:00:15.6]} 25... b4 {[%clk 0:00:19.2]} 26. Ra2 {[%clk 0:00:15.1]} 26...
Qd8 {[%clk 0:00:12.2]} 27. Bd6 {[%clk 0:00:14.8]} 27... a5 {[%clk 0:00:11.5]}
28. Bb5 {[%clk 0:00:14.5]} 28... f6 {[%clk 0:00:08.2]} 29. Re2 {[%clk
0:00:12.6]} 29... Na7 {[%clk 0:00:05.3]} 30. Ba6 {[%clk 0:00:12]} 30... Nc6
{[%clk 0:00:05.5]} 31. Bxc8 {[%clk 0:00:11.8]} 31... Qxc8 {[%clk 0:00:06.2]} 32.
Rd1 {[%clk 0:00:11.7]} 32... Qa6 {[%clk 0:00:06]} 33. Qb2 {[%clk 0:00:09.6]}
33... Ra7 {[%clk 0:00:05.9]} 34. f3 {[%clk 0:00:09.1]} 34... Bd3 {[%clk
0:00:02.9]} 35. Red2 {[%clk 0:00:08.7]} 35... Bc4 {[%clk 0:00:03.3]} 36. e4
{[%clk 0:00:08.7]} 36... Rf7 {[%clk 0:00:02.3]} 37. Re1 {[%clk 0:00:08.9]} 37...
Kh7 {[%clk 0:00:02]} 38. Qc1 {[%clk 0:00:09.4]} 38... Kg8 {[%clk 0:00:02.4]} 39.
Rc2 {[%clk 0:00:09.8]} 39... b3 {[%clk 0:00:02.2]} 40. Rc3 {[%clk 0:00:09.4]}
40... Nb4 {[%clk 0:00:02.7]} 41. Qd2 {[%clk 0:00:08.8]} 41... Nc2 {[%clk
0:00:02.7]} 42. Rxc2 {[%clk 0:00:08.8]} 42... bxc2 {[%clk 0:00:03.6]} 43. Qxc2
{[%clk 0:00:09.7]} 43... Qb7 {[%clk 0:00:03.8]} 44. exd5 {[%clk 0:00:08.9]}
44... Qxd5 {[%clk 0:00:03.4]} 45. Qc3 {[%clk 0:00:08.6]} 45... Rb7 {[%clk
0:00:03.3]} 46. Rd1 {[%clk 0:00:08.9]} 46... Bb3 {[%clk 0:00:02.9]} 47. Rb1
{[%clk 0:00:08.4]} 47... Bxa4 {[%clk 0:00:02.3]} 48. Rxb7 {[%clk 0:00:08.9]}
48... Qxb7 {[%clk 0:00:03]} 49. Qxa5 {[%clk 0:00:09.4]} 49... Bb3 {[%clk
0:00:02.8]} 50. Qd8+ {[%clk 0:00:07]} 50... Kh7 {[%clk 0:00:03.1]} 51. Kh2
{[%clk 0:00:03.1]} 51... Bd5 {[%clk 0:00:03.2]} 52. Qe7 {[%clk 0:00:03.6]} 52...
Qb2 {[%clk 0:00:02.5]} 53. Kg3 {[%clk 0:00:02.6]} 53... Qxd4 {[%clk 0:00:02.5]}
54. Bf4 {[%clk 0:00:02.2]} 54... Qc3 {[%clk 0:00:02.4]} 55. Qd6 {[%clk
0:00:01.9]} 55... Qe1+ {[%clk 0:00:02.2]} 56. Kh2 {[%clk 0:00:01.7]} 56... Qe2
{[%clk 0:00:03]} 57. Bg3 {[%clk 0:00:02.3]} 57... Bxf3 {[%clk 0:00:02.5]} 0-1

[Event "Late-Titled-Tuesday-Blitz-May-07-2024"]
[Site "Chess.com"]
[Date "2024.05.07"]
[Round "10"]
[White "yaguigor"]
[Black "SergioMoralesG"]
[Result "0-1"]
[WhiteElo "2587"]
[BlackElo "2500"]
[TimeControl "180+1"]
[EndTime "15:57:34 PDT"]
[Termination "SergioMoralesG won on time"]

1. e4 {[%clk 0:03:00.9]} 1... c5 {[%clk 0:02:58.6]} 2. Nf3 {[%clk 0:02:59.4]}
2... e6 {[%clk 0:02:58.9]} 3. d4 {[%clk 0:02:57.4]} 3... cxd4 {[%clk 0:02:59.8]}
4. Nxd4 {[%clk 0:02:57.2]} 4... Nc6 {[%clk 0:03:00.4]} 5. Nc3 {[%clk 0:02:56.5]}
5... Qc7 {[%clk 0:03:00.8]} 6. Be3 {[%clk 0:02:55.7]} 6... a6 {[%clk 0:03:01.2]}
7. Qd2 {[%clk 0:02:55.1]} 7... Nf6 {[%clk 0:02:59]} 8. f4 {[%clk 0:02:54.8]}
8... Bb4 {[%clk 0:02:54.5]} 9. Bd3 {[%clk 0:02:51.8]} 9... b5 {[%clk 0:02:30.6]}
10. a3 {[%clk 0:02:49.6]} 10... Ba5 {[%clk 0:02:23.3]} 11. Nb3 {[%clk
0:02:46.8]} 11... Bb6 {[%clk 0:02:20.9]} 12. e5 {[%clk 0:02:46.4]} 12... Nxe5
{[%clk 0:02:09.2]} 13. fxe5 {[%clk 0:02:17.8]} 13... Qxe5 {[%clk 0:02:10.1]} 14.
Ke2 {[%clk 0:01:42.2]} 14... Ng4 {[%clk 0:02:09.5]} 15. Nd1 {[%clk 0:01:32.2]}
15... f5 {[%clk 0:02:09.3]} 16. Qc3 {[%clk 0:01:31.2]} 16... Qxc3 {[%clk
0:01:46.2]} 17. bxc3 {[%clk 0:01:28.8]} 17... Nxe3 {[%clk 0:01:46.7]} 18. Nxe3
{[%clk 0:01:27.2]} 18... Bb7 {[%clk 0:01:47.4]} 19. Rhg1 {[%clk 0:01:24.7]}
19... Rc8 {[%clk 0:01:46.7]} 20. Kd2 {[%clk 0:01:18.4]} 20... f4 {[%clk
0:01:42.4]} 21. Ng4 {[%clk 0:01:17.1]} 21... Bxg1 {[%clk 0:01:31.5]} 22. Rxg1
{[%clk 0:01:16.8]} 22... O-O {[%clk 0:01:25.6]} 23. Nd4 {[%clk 0:01:10.9]} 23...
Rce8 {[%clk 0:01:20.6]} 24. Nf3 {[%clk 0:01:05.7]} 24... d6 {[%clk 0:01:16.2]}
25. c4 {[%clk 0:01:02.9]} 25... e5 {[%clk 0:01:15.1]} 26. Be2 {[%clk 0:00:39.4]}
26... e4 {[%clk 0:01:10.9]} 27. Nd4 {[%clk 0:00:37.7]} 27... f3 {[%clk
0:01:07.2]} 28. gxf3 {[%clk 0:00:35.3]} 28... exf3 {[%clk 0:01:07.7]} 29. Bd3
{[%clk 0:00:33.9]} 29... Rf4 {[%clk 0:00:57.2]} 30. Nf5 {[%clk 0:00:23.3]} 30...
f2 {[%clk 0:00:48.9]} 31. Nxf2 {[%clk 0:00:18.6]} 31... Rxf2+ {[%clk 0:00:47]}
32. Kc3 {[%clk 0:00:19.3]} 32... Kf8 {[%clk 0:00:30.8]} 33. Nxd6 {[%clk
0:00:18.3]} 33... Re7 {[%clk 0:00:27.2]} 34. c5 {[%clk 0:00:17.3]} 34... Rc7
{[%clk 0:00:18.9]} 35. Kb4 {[%clk 0:00:15.9]} 35... Rf4+ {[%clk 0:00:17.2]} 36.
c4 {[%clk 0:00:14.2]} 36... Bd5 {[%clk 0:00:14.3]} 37. Rc1 {[%clk 0:00:10.5]}
37... bxc4 {[%clk 0:00:14.3]} 38. Nxc4 {[%clk 0:00:09.7]} 38... h5 {[%clk
0:00:12.2]} 39. Ka5 {[%clk 0:00:06.3]} 39... Rxc5+ {[%clk 0:00:11.7]} 40. Kb6
{[%clk 0:00:06.3]} 40... Rcxc4 {[%clk 0:00:10.9]} 41. Bxc4 {[%clk 0:00:06.4]}
41... Bxc4 {[%clk 0:00:11]} 42. Re1 {[%clk 0:00:06.2]} 42... h4 {[%clk
0:00:10.8]} 43. Re5 {[%clk 0:00:05.9]} 43... Kf7 {[%clk 0:00:10.1]} 44. Rh5
{[%clk 0:00:05.7]} 44... Kf6 {[%clk 0:00:09.1]} 45. Rh8 {[%clk 0:00:05.6]} 45...
g5 {[%clk 0:00:09.1]} 46. a4 {[%clk 0:00:05.3]} 46... g4 {[%clk 0:00:07.1]} 47.
a5 {[%clk 0:00:05.2]} 47... g3 {[%clk 0:00:06.1]} 48. hxg3 {[%clk 0:00:04.5]}
48... hxg3 {[%clk 0:00:07]} 49. Rh6+ {[%clk 0:00:04]} 49... Kg5 {[%clk
0:00:05.8]} 50. Rh3 {[%clk 0:00:04.2]} 50... Kg4 {[%clk 0:00:05.8]} 51. Rh7
{[%clk 0:00:03.7]} 51... Kf3 {[%clk 0:00:06.4]} 52. Rg7 {[%clk 0:00:04]} 52...
g2 {[%clk 0:00:06.7]} 53. Rg5 {[%clk 0:00:03.9]} 53... Rg4 {[%clk 0:00:06.8]}
54. Rf5+ {[%clk 0:00:03.9]} 54... Kg3 {[%clk 0:00:07.3]} 0-1

[Event "Late-Titled-Tuesday-Blitz-May-07-2024"]
[Site "Chess.com"]
[Date "2024.05.07"]
[Round "10"]
[White "ToddBryant"]
[Black "hikaruchija"]
[Result "0-1"]
[WhiteElo "2401"]
[BlackElo "2520"]
[TimeControl "180+1"]
[EndTime "15:57:34 PDT"]
[Termination "hikaruchija won by checkmate"]

1. e4 {[%clk 0:03:00.9]} 1... g6 {[%clk 0:02:59.7]} 2. d4 {[%clk 0:03:00.5]}
2... Bg7 {[%clk 0:02:58.6]} 3. Nc3 {[%clk 0:03:01.1]} 3... d6 {[%clk 0:02:57.4]}
4. Be3 {[%clk 0:03:01.3]} 4... a6 {[%clk 0:02:57.6]} 5. Bd3 {[%clk 0:03:01.7]}
5... b5 {[%clk 0:02:56.6]} 6. Nf3 {[%clk 0:03:02.3]} 6... Bb7 {[%clk 0:02:56]}
7. h4 {[%clk 0:03:03]} 7... h6 {[%clk 0:02:55]} 8. e5 {[%clk 0:03:01.3]} 8... e6
{[%clk 0:02:50.2]} 9. Ne4 {[%clk 0:02:56.5]} 9... Bxe4 {[%clk 0:02:40.6]} 10.
Bxe4 {[%clk 0:02:57.4]} 10... d5 {[%clk 0:02:40.7]} 11. Bd3 {[%clk 0:02:57.7]}
11... Nd7 {[%clk 0:02:39.4]} 12. Qd2 {[%clk 0:02:54.4]} 12... c5 {[%clk
0:02:37.8]} 13. c3 {[%clk 0:02:53.5]} 13... Ne7 {[%clk 0:02:24.8]} 14. h5 {[%clk
0:02:49.5]} 14... g5 {[%clk 0:02:24]} 15. Nxg5 {[%clk 0:02:50.1]} 15... hxg5
{[%clk 0:02:23.1]} 16. Bxg5 {[%clk 0:02:51]} 16... cxd4 {[%clk 0:02:20.3]} 17.
cxd4 {[%clk 0:02:41.6]} 17... Qb6 {[%clk 0:02:19]} 18. h6 {[%clk 0:02:40.4]}
18... Bf8 {[%clk 0:02:18.1]} 19. Qf4 {[%clk 0:02:21.1]} 19... Nc6 {[%clk
0:01:33.5]} 20. Bf6 {[%clk 0:02:02.5]} 20... Nxf6 {[%clk 0:01:32.3]} 21. Qxf6
{[%clk 0:02:02.4]} 21... Bb4+ {[%clk 0:00:49.3]} 22. Kf1 {[%clk 0:01:56.6]}
22... Kd7 {[%clk 0:00:48]} 23. Qxf7+ {[%clk 0:01:39.7]} 23... Be7 {[%clk
0:00:44.3]} 24. Rc1 {[%clk 0:01:13.3]} 24... Qxd4 {[%clk 0:00:37.6]} 25. Rxc6
{[%clk 0:01:08.7]} 25... Qxd3+ {[%clk 0:00:33.9]} 26. Kg1 {[%clk 0:01:09.2]}
26... Qd1+ {[%clk 0:00:17.5]} 27. Kh2 {[%clk 0:01:09.9]} 27... Rxh6+ {[%clk
0:00:17.7]} 28. Kg3 {[%clk 0:01:10.5]} 28... Qd3+ {[%clk 0:00:17.6]} 29. f3
{[%clk 0:01:08.3]} 29... Qg6+ {[%clk 0:00:17.4]} 30. Qxg6 {[%clk 0:01:07.7]}
30... Rxg6+ {[%clk 0:00:18.3]} 31. Kf2 {[%clk 0:01:08.3]} 31... Kxc6 {[%clk
0:00:18.6]} 32. Rh7 {[%clk 0:01:08.7]} 32... Kd7 {[%clk 0:00:18.8]} 33. f4
{[%clk 0:01:09]} 33... Rc8 {[%clk 0:00:19]} 34. g4 {[%clk 0:01:09]} 34... Rc4
{[%clk 0:00:19]} 35. Kf3 {[%clk 0:01:09.9]} 35... Rg8 {[%clk 0:00:18.9]} 36. f5
{[%clk 0:01:09.5]} 36... Rf8 {[%clk 0:00:19.1]} 37. f6 {[%clk 0:01:09.6]} 37...
Re8 {[%clk 0:00:18.2]} 38. g5 {[%clk 0:01:09.4]} 38... Kd8 {[%clk 0:00:17.1]}
39. g6 {[%clk 0:01:09]} 39... Re4 {[%clk 0:00:17]} 40. fxe7+ {[%clk 0:00:59.5]}
40... Rxe7 {[%clk 0:00:16.9]} 41. g7 {[%clk 0:01:00.4]} 41... Rxg7 {[%clk
0:00:15.3]} 42. Rxg7 {[%clk 0:01:01.3]} 42... Rxe5 {[%clk 0:00:15.5]} 43. Ra7
{[%clk 0:01:01.2]} 43... Re4 {[%clk 0:00:15.4]} 44. Rxa6 {[%clk 0:01:00.9]}
44... Rb4 {[%clk 0:00:15.2]} 45. b3 {[%clk 0:00:58.8]} 45... Re4 {[%clk
0:00:15.2]} 46. Rb6 {[%clk 0:00:56.8]} 46... b4 {[%clk 0:00:14.8]} 47. Rb7
{[%clk 0:00:56.2]} 47... Kc8 {[%clk 0:00:14.6]} 48. Ra7 {[%clk 0:00:56.4]} 48...
Kb8 {[%clk 0:00:14]} 49. Re7 {[%clk 0:00:56.9]} 49... e5 {[%clk 0:00:13.1]} 50.
Rd7 {[%clk 0:00:55.9]} 50... Rd4 {[%clk 0:00:13.3]} 51. Re7 {[%clk 0:00:56.4]}
51... e4+ {[%clk 0:00:13.3]} 52. Kf4 {[%clk 0:00:55.6]} 52... Rd2 {[%clk
0:00:13.5]} 53. Rd7 {[%clk 0:00:51.9]} 53... Kc8 {[%clk 0:00:13.4]} 54. Rg7
{[%clk 0:00:45.7]} 54... Rd3 {[%clk 0:00:13.4]} 55. Ra7 {[%clk 0:00:44]} 55...
e3 {[%clk 0:00:12.7]} 56. Kf3 {[%clk 0:00:42.8]} 56... d4 {[%clk 0:00:12.7]} 57.
Ra4 {[%clk 0:00:41.6]} 57... Rd2 {[%clk 0:00:12.6]} 58. Rxb4 {[%clk 0:00:41.5]}
58... e2 {[%clk 0:00:12.8]} 59. Kf2 {[%clk 0:00:38.1]} 59... d3 {[%clk
0:00:12.7]} 60. Rc4+ {[%clk 0:00:37.9]} 60... Kb7 {[%clk 0:00:12.1]} 61. Re4
{[%clk 0:00:23.3]} 61... Rd1 {[%clk 0:00:11.4]} 62. a4 {[%clk 0:00:22.9]} 62...
Rf1+ {[%clk 0:00:11]} 63. Kg2 {[%clk 0:00:19.8]} 63... e1=Q {[%clk 0:00:10.6]}
64. Rxe1 {[%clk 0:00:20.7]} 64... Rxe1 {[%clk 0:00:10.5]} 65. Kf2 {[%clk
0:00:21.6]} 65... d2 {[%clk 0:00:08.1]} 66. Kf3 {[%clk 0:00:22.5]} 66... d1=Q+
{[%clk 0:00:08.4]} 67. Kf4 {[%clk 0:00:23.4]} 67... Qxb3 {[%clk 0:00:08.6]} 68.
Kf5 {[%clk 0:00:24.3]} 68... Qxa4 {[%clk 0:00:09]} 69. Kg6 {[%clk 0:00:25.2]}
69... Re5 {[%clk 0:00:08.4]} 70. Kf7 {[%clk 0:00:26.1]} 70... Rb5 {[%clk
0:00:08.5]} 71. Kg6 {[%clk 0:00:27]} 71... Kc6 {[%clk 0:00:08.8]} 72. Kf6 {[%clk
0:00:27.9]} 72... Qa6 {[%clk 0:00:08.7]} 73. Kg6 {[%clk 0:00:28.8]} 73... Kb6
{[%clk 0:00:08.9]} 74. Kf6 {[%clk 0:00:29.7]} 74... Ka5+ {[%clk 0:00:09]} 75.
Kg7 {[%clk 0:00:30.6]} 75... Rb7+ {[%clk 0:00:09.1]} 76. Kf8 {[%clk 0:00:31.5]}
76... Qa8# {[%clk 0:00:09.3]} 0-1

[Event "Late-Titled-Tuesday-Blitz-May-07-2024"]
[Site "Chess.com"]
[Date "2024.05.07"]
[Round "10"]
[White "IMRosen"]
[Black "GrotBchess"]
[Result "1-0"]
[WhiteElo "2642"]
[BlackElo "2526"]
[TimeControl "180+1"]
[EndTime "15:57:36 PDT"]
[Termination "IMRosen won by checkmate"]

1. a4 {[%clk 0:03:00.9]} 1... e6 {[%clk 0:02:58.9]} 2. Ra3 {[%clk 0:03:01.8]}
2... Bxa3 {[%clk 0:02:57.1]} 3. Nxa3 {[%clk 0:03:02.7]} 3... Nf6 {[%clk
0:02:56.9]} 4. g3 {[%clk 0:03:03.2]} 4... d5 {[%clk 0:02:55.2]} 5. Bg2 {[%clk
0:03:03.1]} 5... b6 {[%clk 0:02:55.8]} 6. b3 {[%clk 0:03:03.7]} 6... Bb7 {[%clk
0:02:56]} 7. Bb2 {[%clk 0:03:04.5]} 7... Nbd7 {[%clk 0:02:55.9]} 8. e3 {[%clk
0:03:05.2]} 8... a6 {[%clk 0:02:54.7]} 9. Ne2 {[%clk 0:03:05.4]} 9... c5 {[%clk
0:02:53.9]} 10. O-O {[%clk 0:03:05.8]} 10... Qc7 {[%clk 0:02:52.7]} 11. Qa1
{[%clk 0:03:05]} 11... Rd8 {[%clk 0:02:48]} 12. h3 {[%clk 0:03:03.7]} 12... h6
{[%clk 0:02:45]} 13. d3 {[%clk 0:03:04.1]} 13... e5 {[%clk 0:02:43.3]} 14. Kh2
{[%clk 0:02:48.8]} 14... d4 {[%clk 0:02:39.7]} 15. e4 {[%clk 0:02:48.7]} 15...
g5 {[%clk 0:02:39.7]} 16. Nc4 {[%clk 0:02:47.9]} 16... h5 {[%clk 0:02:37.5]} 17.
Bc1 {[%clk 0:02:38.1]} 17... Nh7 {[%clk 0:02:30.1]} 18. Bd2 {[%clk 0:02:37.9]}
18... Ndf8 {[%clk 0:02:28.1]} 19. Qc1 {[%clk 0:02:31.7]} 19... Ne6 {[%clk
0:02:27.2]} 20. Ng1 {[%clk 0:02:19.4]} 20... h4 {[%clk 0:02:24.4]} 21. Nf3
{[%clk 0:02:04.4]} 21... hxg3+ {[%clk 0:02:17.7]} 22. fxg3 {[%clk 0:02:04.6]}
22... f6 {[%clk 0:02:17.9]} 23. Kg1 {[%clk 0:01:57.8]} 23... Nhf8 {[%clk
0:02:09.3]} 24. Nh2 {[%clk 0:01:55.8]} 24... Nd7 {[%clk 0:01:53.9]} 25. Ng4
{[%clk 0:01:55.2]} 25... Rf8 {[%clk 0:01:54]} 26. Qd1 {[%clk 0:01:19.2]} 26...
Qc6 {[%clk 0:01:43.6]} 27. Nh6 {[%clk 0:01:14.5]} 27... Ng7 {[%clk 0:01:41.7]}
28. Qg4 {[%clk 0:01:08]} 28... Ke7 {[%clk 0:01:06.8]} 29. h4 {[%clk 0:00:58.9]}
29... Rde8 {[%clk 0:00:43.3]} 30. hxg5 {[%clk 0:00:53.8]} 30... Kd8 {[%clk
0:00:39.2]} 31. g6 {[%clk 0:00:37.8]} 31... Kc7 {[%clk 0:00:33.4]} 32. Rf2
{[%clk 0:00:29.2]} 32... Qe6 {[%clk 0:00:32.8]} 33. Nf5 {[%clk 0:00:27.6]} 33...
Nxf5 {[%clk 0:00:30.4]} 34. exf5 {[%clk 0:00:24.7]} 34... Qe7 {[%clk 0:00:28.5]}
35. Bxb7 {[%clk 0:00:23.2]} 35... Kxb7 {[%clk 0:00:28.8]} 36. Qe4+ {[%clk
0:00:20]} 36... Kc7 {[%clk 0:00:27.1]} 37. g4 {[%clk 0:00:13.6]} 37... Rh8
{[%clk 0:00:23.6]} 38. b4 {[%clk 0:00:08.9]} 38... cxb4 {[%clk 0:00:20.5]} 39.
Rg2 {[%clk 0:00:09.3]} 39... Rh4 {[%clk 0:00:19.5]} 40. Qd5 {[%clk 0:00:08.7]}
40... Qc5 {[%clk 0:00:18.5]} 41. Qxc5+ {[%clk 0:00:04.4]} 41... bxc5 {[%clk
0:00:17.9]} 42. g5 {[%clk 0:00:04.2]} 42... Rg8 {[%clk 0:00:17.5]} 43. gxf6
{[%clk 0:00:03.8]} 43... Nxf6 {[%clk 0:00:16.4]} 44. Bg5 {[%clk 0:00:04.6]}
44... Rh5 {[%clk 0:00:12.1]} 45. Bxf6 {[%clk 0:00:04.5]} 45... Rxf5 {[%clk
0:00:12.7]} 46. Bxe5+ {[%clk 0:00:05.3]} 46... Kc6 {[%clk 0:00:12.9]} 47. g7
{[%clk 0:00:05.6]} 47... Kd5 {[%clk 0:00:13.1]} 48. Bh2 {[%clk 0:00:03.6]} 48...
Rf7 {[%clk 0:00:13.1]} 49. Rg5+ {[%clk 0:00:04.1]} 49... Kc6 {[%clk 0:00:12.4]}
50. Be5 {[%clk 0:00:04.7]} 50... Re7 {[%clk 0:00:11.9]} 51. Kg2 {[%clk
0:00:04.8]} 51... Kd7 {[%clk 0:00:11.3]} 52. Kf3 {[%clk 0:00:05.3]} 52... Kc6
{[%clk 0:00:11.3]} 53. Ke4 {[%clk 0:00:05.8]} 53... Re6 {[%clk 0:00:09.9]} 54.
Rg1 {[%clk 0:00:05.4]} 54... Re7 {[%clk 0:00:10.1]} 55. Rg6+ {[%clk 0:00:05.3]}
55... Kb7 {[%clk 0:00:08.3]} 56. Nd6+ {[%clk 0:00:05.1]} 56... Ka7 {[%clk
0:00:07.4]} 57. Nf5 {[%clk 0:00:06]} 57... Ree8 {[%clk 0:00:06.8]} 58. Nh6
{[%clk 0:00:06.4]} 58... Rxg7 {[%clk 0:00:04.8]} 59. Rxg7+ {[%clk 0:00:07.3]}
59... Kb6 {[%clk 0:00:04.8]} 60. Nf5 {[%clk 0:00:07.3]} 60... Ka5 {[%clk
0:00:04.9]} 61. Nd6 {[%clk 0:00:07.4]} 61... Rb8 {[%clk 0:00:04.2]} 62. Ra7
{[%clk 0:00:06.3]} 62... Kxa4 {[%clk 0:00:04.2]} 63. Rxa6# {[%clk 0:00:06]} 1-0